bitfinex-derivatives/quotes_BTCF0:USTF0_20241117
["timestamp","ask_amount","ask_price","bid_price","bid_amount"]
[1731879944130,0.002,89410.0,89409.0,0.3608]
[1731879945028,0.002,89410.0,89409.0,0.47264493]
[1731879945536,0.1572,89429.0,89409.0,0.80816493]
[1731879945726,0.1572,89429.0,89422.0,0.08607897]
[1731879946432,0.055908,89428.0,89423.0,0.0349]
[1731879946735,0.1602,89429.0,89424.0,0.3608]
[1731879946934,0.1632,89429.0,89424.0,0.41671]
[1731879947438,0.1632,89429.0,89425.0,0.11182492]
[1731879948535,0.1632,89429.0,89427.0,0.055908]
[1731879948536,0.1602,89429.0,89427.0,0.055908]
[1731879948742,0.003,89428.0,89427.0,0.055908]
[1731879949221,0.003,89428.0,89427.0,0.16773105]
[1731879949427,0.1622,89429.0,89427.0,0.16773105]
[1731879949627,0.1592,89429.0,89427.0,0.16773105]
[1731879949926,0.1622,89429.0,89427.0,0.16773105]
[1731879950128,0.003,89429.0,89427.0,0.16773105]
[1731879950522,0.00167774,89431.0,89430.0,0.055906]
[1731879950723,0.147454,89450.0,89427.0,0.11382305]
[1731879950926,0.09156,89450.0,89440.0,0.14197897]
[1731879951348,0.0346,89452.0,89440.0,0.14197897]
[1731879951633,0.055887,89461.0,89452.0,0.055892]
[1731879951634,0.147447,89461.0,89452.0,0.055892]
[1731879951842,0.147447,89461.0,89459.0,0.08607897]
[1731879951843,0.09156,89461.0,89459.0,0.08607897]
[1731879952027,0.0939035,89463.0,89459.0,0.08607897]
[1731879953343,0.36092443,89481.0,89459.0,0.08607897]
[1731879953344,0.36092443,89481.0,89462.0,0.3608]
[1731879953643,0.36092443,89481.0,89460.0,0.11178055]
[1731879953644,0.36092443,89481.0,89467.0,0.14196197]
[1731879954336,0.055875,89480.0,89467.0,0.14196197]
[1731879954542,0.00060001,89473.0,89467.0,0.25373752]
[1731879954730,0.055875,89480.0,89467.0,0.25373752]
[1731879955555,0.00367724,89468.0,89467.0,0.25373752]
[1731879956029,0.00467724,89468.0,89467.0,0.26083568]
[1731879956230,0.00467724,89468.0,89467.0,0.26183568]
[1731879956231,0.00367724,89468.0,89467.0,0.26183568]
[1731879956854,0.002,89468.0,89467.0,0.26183568]
[1731879957944,0.002,89468.0,89467.0,0.46194762]
[1731879958142,0.002,89468.0,89467.0,0.26183568]
[1731879958644,0.00012443,89481.0,89480.0,0.055875]
[1731879958843,0.00012443,89481.0,89480.0,0.14195397]
[1731879959030,0.00012443,89481.0,89480.0,0.47723397]
[1731879959230,0.055863,89499.0,89480.0,0.1978514]
[1731879959548,0.055863,89499.0,89495.0,0.08607897]
[1731879960536,0.067863,89499.0,89495.0,0.08607897]
[1731879960935,0.012,89499.0,89488.0,0.36136]
[1731879961240,0.055872,89486.0,89481.0,0.08607897]
[1731879961439,0.3608,89490.0,89481.0,0.08607897]
[1731879961641,0.3608,89490.0,89482.0,0.11173558]
[1731879962336,0.3608,89490.0,89488.0,0.001]
[1731879962938,0.3608,89489.0,89488.0,0.001]
[1731879963141,0.3608,89489.0,89482.0,0.11273558]
[1731879964048,0.05587,89488.0,89482.0,0.11273558]
[1731879964340,0.09307,89488.0,89482.0,0.11273558]
[1731879964644,0.09307,89488.0,89482.0,0.11173558]
[1731879964845,0.0372,89488.0,89477.0,0.0016763]
[1731879965051,0.3608,89478.0,89477.0,0.0016763]
[1731879965348,0.3608,89478.0,89467.0,9.816e-05]
[1731879965541,0.3608,89468.0,89467.0,9.816e-05]
[1731879965737,0.055883,89469.0,89467.0,9.816e-05]
[1731879966436,0.3638,89478.0,89468.0,0.11177243]
[1731879966638,0.3638,89478.0,89476.0,0.14195597]
[1731879967333,0.003,89478.0,89477.0,0.11176556]
[1731879967947,0.003,89478.0,89477.0,0.12224738]
[1731879968142,0.058876,89478.0,89476.0,0.08607897]
[1731879968347,0.055879,89475.0,89469.0,0.08607897]
[1731879968540,0.055881,89471.0,89470.0,0.01048281]
[1731879968740,0.055881,89471.0,89469.0,0.04456889]
[1731879969038,0.055881,89471.0,89462.0,0.10843944]
[1731879969241,0.055881,89471.0,89467.0,0.04471625]
[1731879969431,0.055881,89471.0,89467.0,9.816e-05]
[1731879969630,0.056881,89471.0,89470.0,0.001]
[1731879970342,0.056881,89471.0,89467.0,9.816e-05]
[1731879970343,0.055882,89470.0,89467.0,0.00209816]
[1731879970650,0.001,89471.0,89469.0,0.08607897]
[1731879970840,0.055881,89470.0,89469.0,0.08607897]
[1731879971035,0.001,89471.0,89467.0,0.00209816]
[1731879971236,0.416683,89468.0,89467.0,0.00209816]
[1731879971437,0.416683,89468.0,89467.0,0.00809816]
[1731879971638,0.452983,89468.0,89467.0,0.00609816]
[1731879972143,0.452983,89468.0,89467.0,9.816e-05]
[1731879972951,0.469983,89468.0,89467.0,0.00109816]
[1731879973147,0.469983,89468.0,89456.0,0.04382102]
[1731879973148,0.055889,89457.0,89456.0,0.04382102]
[1731879973348,0.0914,89463.0,89449.0,0.00223682]
[1731879973654,0.416688,89459.0,89455.0,0.055891]
[1731879974157,0.416688,89459.0,89456.0,0.00012911]
[1731879974650,0.055889,89458.0,89456.0,0.00012911]
[1731879976246,0.0358,89457.0,89456.0,0.00212911]
[1731879977158,0.0358,89457.0,89456.0,0.00412911]
[1731879977749,0.0358,89457.0,89456.0,0.00212911]
[1731879978053,0.0418,89457.0,89456.0,0.00112911]
[1731879978454,0.0498,89457.0,89456.0,0.00112911]
[1731879978752,0.0498,89457.0,89449.0,0.00167682]
[1731879978753,0.055894,89450.0,89449.0,0.00167682]
[1731879978939,0.45224,89450.0,89440.0,0.04434007]
[1731879979144,0.45224,89450.0,89448.0,0.055895]
[1731879979145,0.055895,89449.0,89448.0,0.055895]
[1731879979460,0.45280001,89450.0,89448.0,0.055895]
[1731879979648,0.3608,89450.0,89449.0,0.0001171]
[1731879980044,0.0478,89457.0,89455.0,0.05589]
[1731879980245,0.0478,89457.0,89455.0,0.14196897]
[1731879980744,0.012,89457.0,89456.0,0.11179554]
[1731879981142,0.09144,89466.0,89456.0,0.11179554]
[1731879981342,0.0716,89468.0,89465.0,0.08607897]
[1731879981343,0.0353,89468.0,89465.0,0.08607897]
[1731879981538,0.213077,89478.0,89465.0,0.08607897]
[1731879981753,0.45224,89483.0,89474.0,0.08607897]
[1731879981754,0.055877,89477.0,89474.0,0.08607897]
[1731879982637,0.3961,89483.0,89474.0,0.19784827]
[1731879982845,0.3608,89483.0,89474.0,0.19784827]
[1731879983055,0.055871,89487.0,89474.0,0.19784827]
[1731879983253,0.055871,89487.0,89474.0,0.23254827]
[1731879983451,0.055871,89487.0,89474.0,0.23354827]
[1731879983850,0.45224,89492.0,89474.0,0.47790761]
[1731879984055,0.055873,89484.0,89474.0,0.27821711]
[1731879985057,0.3608,89483.0,89474.0,0.15743814]
[1731879985241,0.4183551,89475.0,89474.0,0.01248196]
[1731879985447,0.6977571,89475.0,89452.0,0.08607897]
[1731879985649,0.3608,89458.0,89457.0,0.01048403]
[1731879987559,0.3618,89458.0,89457.0,0.01548403]
[1731879988047,0.3628,89458.0,89457.0,0.01648403]
[1731879988250,0.3618,89458.0,89457.0,0.01148403]
[1731879988565,0.001,89458.0,89457.0,0.01548403]
[1731879988748,0.002,89458.0,89457.0,0.01648403]
[1731879989349,0.002,89458.0,89457.0,0.12826895]
[1731879989558,0.055878,89476.0,89457.0,0.49922895]
[1731879989760,0.055878,89476.0,89473.0,0.08607897]
[1731879989959,0.055878,89476.0,89460.0,0.20042789]
[1731879989960,0.055878,89475.0,89474.0,0.01048403]
[1731879990653,0.061878,89475.0,89474.0,0.01048403]
[1731879991052,0.061878,89475.0,89474.0,0.11176368]
[1731879991053,0.006,89475.0,89474.0,0.11176368]
[1731879991256,0.002,89476.0,89474.0,0.11176368]
[1731879991462,0.055874,89483.0,89474.0,0.001]
[1731879991759,0.055874,89482.0,89475.0,0.11176368]
[1731879992154,0.055874,89482.0,89476.0,0.01048194]
[1731879992357,0.055875,89481.0,89475.0,0.11176368]
[1731879992555,0.3608,89488.0,89474.0,0.001]
[1731879992777,0.055867,89493.0,89487.0,0.08607897]
[1731879993064,0.055869,89490.0,89488.0,0.04458208]
[1731879993365,0.055869,89490.0,89489.0,0.01048208]
[1731879993581,0.3608,89493.0,89488.0,0.14585556]
[1731879993759,0.3608,89493.0,89489.0,0.01048162]
[1731879993961,0.3608,89493.0,89489.0,0.11175556]
[1731879994383,0.3608,89493.0,89489.0,0.16762456]
[1731879994554,0.3608,89493.0,89490.0,0.01048144]
[1731879994752,0.3608,89493.0,89489.0,0.16862456]
[1731879994964,0.3608,89493.0,89489.0,0.056869]
[1731879995153,0.012,89490.0,89489.0,0.056869]
[1731879995460,0.012,89490.0,89489.0,0.06735005]
[1731879995662,0.012,89490.0,89489.0,0.1790925]
[1731879996454,0.012,89490.0,89489.0,0.1780925]
[1731879996655,0.018,89493.0,89489.0,0.1790925]
[1731879996855,0.018,89493.0,89490.0,0.01048105]
[1731879997060,0.018,89493.0,89492.0,0.08607897]
[1731879997363,0.3608,89495.0,89492.0,0.09656002]
[1731879997564,0.3608,89495.0,89493.0,0.01048105]
[1731879997864,0.3608,89495.0,89494.0,0.01048105]
[1731879998057,0.0016765,89499.0,89492.0,0.08607897]
[1731879998255,0.0016765,89499.0,89494.0,0.16760533]
[1731879998462,0.0016765,89499.0,89495.0,0.0104804]
[1731879998659,0.0016765,89499.0,89496.0,0.0104804]
[1731879998859,0.0016765,89499.0,89497.0,0.0104804]
[1731879999056,0.0016765,89499.0,89498.0,0.0104804]
[1731879999356,0.0016765,89499.0,89498.0,0.17807936]
[1731879999556,0.0016765,89499.0,89498.0,0.0663444]
[1731879999774,0.0016765,89499.0,89498.0,0.4271444]
[1731879999956,0.0016765,89499.0,89498.0,0.53887936]
[1731879999957,0.0076765,89499.0,89498.0,0.53887936]
[1731880000552,0.0136765,89499.0,89498.0,0.53887936]
[1731880000758,0.36144,89512.0,89510.0,0.055856]
[1731880000956,0.3608,89512.0,89511.0,0.09666373]
[1731880001468,0.3608,89512.0,89511.0,0.20839744]
[1731880002271,0.3658,89512.0,89511.0,0.20839744]
[1731880002474,0.421655,89512.0,89511.0,0.01058476]
[1731880002659,0.421655,89512.0,89511.0,0.00010436]
[1731880003156,0.431655,89512.0,89511.0,0.00010436]
[1731880003559,0.3758,89512.0,89511.0,0.00010436]
[1731880003861,0.3758,89512.0,89511.0,0.00110436]
[1731880004274,0.431655,89512.0,89511.0,0.00110436]
[1731880008867,0.466655,89512.0,89511.0,0.00110436]
[1731880011466,0.466655,89512.0,89493.0,0.00714639]
[1731880011467,0.055866,89494.0,89493.0,0.00714639]
[1731880011668,0.416666,89494.0,89493.0,0.01215598]
[1731880011969,0.416666,89494.0,89472.0,0.23772789]
[1731880011970,0.055877,89478.0,89476.0,0.055877]
[1731880012172,0.35773144,89478.0,89477.0,0.02235555]
[1731880012468,0.35773144,89478.0,89477.0,9.103e-05]
[1731880012674,0.74888744,89478.0,89477.0,9.103e-05]
[1731880013584,0.74888744,89478.0,89457.0,0.14364475]
[1731880013585,0.055889,89458.0,89457.0,0.02403644]
[1731880013774,0.416689,89458.0,89457.0,0.02403644]
[1731880014277,0.416689,89458.0,89457.0,0.00167678]
[1731880014467,0.416689,89458.0,89457.0,0.00177699]
[1731880014874,0.416689,89458.0,89457.0,0.16945091]
[1731880014875,0.3608,89458.0,89457.0,0.16945091]
[1731880015060,0.055885,89465.0,89464.0,0.055885]
[1731880015260,0.09132,89467.0,89464.0,0.055885]
[1731880015261,0.09132,89467.0,89464.0,0.08607897]
[1731880015460,0.3608,89468.0,89466.0,0.055884]
[1731880016274,0.3608,89468.0,89467.0,0.11177305]
[1731880016676,0.41360844,89478.0,89467.0,0.11177305]
[1731880016899,0.001,89468.0,89467.0,0.11177305]
[1731880017083,0.001,89468.0,89466.0,0.013]
[1731880017373,0.05588,89473.0,89467.0,0.11176743]
[1731880017578,0.001,89468.0,89467.0,0.12476743]
[1731880017879,0.001,89468.0,89467.0,0.013]
[1731880018076,0.001,89468.0,89467.0,0.12476743]
[1731880018666,0.002,89468.0,89467.0,0.12476743]
[1731880019266,0.001,89468.0,89467.0,0.11576743]
[1731880019466,0.001,89468.0,89467.0,0.12476743]
[1731880019881,0.002,89468.0,89467.0,0.13376743]
[1731880020377,0.001,89468.0,89467.0,0.13676743]
[1731880020680,0.002,89468.0,89467.0,0.13676743]
[1731880020875,0.001,89468.0,89467.0,0.12476743]
[1731880021083,0.002,89468.0,89467.0,0.13776743]
[1731880021779,0.002,89468.0,89467.0,0.026]
[1731880021971,0.0394,89468.0,89467.0,0.03648372]
[1731880022181,0.0384,89468.0,89467.0,0.013]
[1731880022388,0.0394,89468.0,89467.0,0.022]
[1731880022983,0.0384,89468.0,89467.0,0.013]
[1731880023175,0.095283,89468.0,89467.0,0.022]
[1731880023685,0.094283,89468.0,89467.0,0.01948389]
[1731880023887,0.094283,89468.0,89467.0,4.009]
[1731880024784,0.728603,89468.0,89467.0,4.001]
[1731880025984,0.428603,89468.0,89467.0,4.001]
[1731880026583,0.77291434,89468.0,89467.0,3.859114]
[1731880026785,0.77291434,89468.0,89467.0,3.802764]
[1731880027176,0.77291434,89468.0,89467.0,1.98890785]
[1731880027484,0.77291434,89468.0,89467.0,1.78619785]
[1731880027673,0.77291434,89468.0,89467.0,1.58025085]
[1731880027674,1.06316945,89468.0,89467.0,1.58025085]
[1731880027978,0.93011434,89468.0,89467.0,1.58025085]
[1731880028183,0.93011434,89468.0,89467.0,1.49561585]
[1731880028489,0.93511434,89468.0,89467.0,1.40154685]
[1731880028684,0.93511434,89468.0,89467.0,1.25829085]
[1731880028883,0.93511434,89468.0,89467.0,1.19244685]
[1731880028884,0.94511434,89468.0,89467.0,1.19244685]
[1731880029080,0.94511434,89468.0,89467.0,1.12174985]
[1731880029284,0.93511434,89468.0,89467.0,1.12074985]
[1731880029483,0.94511434,89468.0,89467.0,1.00179585]
[1731880029683,0.94511434,89468.0,89467.0,0.94178085]
[1731880030386,1.0777263,89468.0,89467.0,0.70686038]
[1731880030579,0.94511434,89468.0,89467.0,0.68450038]
[1731880030890,0.94511434,89468.0,89467.0,0.62847438]
[1731880031092,0.94511434,89468.0,89467.0,0.57079138]
[1731880031275,0.94511434,89468.0,89467.0,0.51325838]
[1731880031476,0.94511434,89468.0,89467.0,0.40065838]
[1731880031989,0.73643434,89468.0,89467.0,0.40065838]
[1731880032485,0.40111434,89468.0,89467.0,0.37829838]
[1731880032791,0.73643434,89468.0,89467.0,0.37829838]
[1731880033789,0.265483,89468.0,89467.0,0.37829838]
[1731880034091,0.070883,89468.0,89467.0,0.37829838]
[1731880034289,0.162203,89468.0,89467.0,0.37829838]
[1731880034476,0.58360197,89468.0,89467.0,0.37829838]
[1731880036686,0.24828197,89468.0,89467.0,0.37829838]
[1731880036891,0.58360197,89468.0,89467.0,0.37829838]
[1731880037194,0.24828197,89468.0,89467.0,0.37829838]
[1731880037490,0.58360197,89468.0,89467.0,0.37829838]
[1731880038481,0.88360197,89468.0,89467.0,0.32120838]
[1731880038789,0.88360197,89468.0,89467.0,0.29884838]
[1731880039290,1.04080197,89468.0,89467.0,0.29884838]
[1731880039689,1.04080197,89468.0,89467.0,2.5e-07]
[1731880039890,0.055889,89458.0,89457.0,2.1e-07]
[1731880040090,0.65996797,89458.0,89457.0,2.1e-07]
[1731880040286,1.29532797,89458.0,89457.0,2.1e-07]
[1731880040680,1.29532797,89458.0,89433.0,0.00167729]
[1731880040681,0.055898,89443.0,89433.0,0.00167729]
[1731880040881,0.777504,89434.0,89433.0,0.00167729]
[1731880041591,0.91048746,89434.0,89433.0,0.00167729]
[1731880041792,0.91048746,89434.0,89433.0,0.00180242]
[1731880042191,0.777504,89434.0,89433.0,0.00180242]
[1731880042583,0.777504,89434.0,89433.0,0.00380242]
[1731880043997,0.777504,89434.0,89433.0,0.00780242]
[1731880045391,0.821959,89434.0,89433.0,0.00780242]
[1731880047102,0.913279,89434.0,89433.0,0.00780242]
[1731880049498,0.777504,89434.0,89433.0,0.00612513]
[1731880049801,0.868864,89434.0,89433.0,0.00612513]
[1731880050099,1.204304,89434.0,89433.0,0.00612513]
[1731880050303,1.33728746,89434.0,89433.0,0.00612513]
[1731880050991,1.361504,89434.0,89433.0,0.00612513]
[1731880052089,1.026064,89434.0,89433.0,0.00612513]
[1731880056305,0.934704,89434.0,89433.0,0.00612513]
[1731880056603,1.026064,89434.0,89433.0,0.00612513]
[1731880056790,1.11214297,89434.0,89433.0,0.00612513]
[1731880056989,0.95494297,89434.0,89433.0,0.00612513]
[1731880059003,0.868864,89434.0,89433.0,0.00612513]
[1731880063995,1.00206871,89434.0,89433.0,0.00612513]
[1731880064396,0.868864,89434.0,89433.0,0.00612513]
[1731880067406,1.03504384,89434.0,89433.0,0.00612513]
[1731880067805,0.92325174,89434.0,89433.0,0.00612513]
[1731880068401,1.054227,89434.0,89433.0,0.00612513]
[1731880068812,1.21142641,89434.0,89433.0,0.00612513]
[1731880069310,1.21144142,89434.0,89433.0,0.00612513]
[1731880070617,1.08041459,89434.0,89433.0,0.00612513]
[1731880074309,1.211566,89434.0,89433.0,0.00612513]
[1731880074713,1.054366,89434.0,89433.0,0.00612513]
[1731880078709,1.054366,89434.0,89433.0,0.00212513]
[1731880078910,1.058366,89434.0,89433.0,0.00212513]
[1731880079112,1.058366,89434.0,89433.0,0.00012513]
[1731880079311,1.067366,89434.0,89433.0,0.00012513]
[1731880081321,0.93621228,89434.0,89433.0,0.00012513]
[1731880082329,0.93621296,89434.0,89433.0,0.00012513]
[1731880084532,1.04542381,89434.0,89433.0,0.00012513]
[1731880084742,1.02229193,89434.0,89433.0,0.00012513]
[1731880086932,0.93621296,89434.0,89433.0,0.00012513]
[1731880089552,0.881824,89434.0,89433.0,0.00012513]
[1731880090452,0.790504,89434.0,89433.0,0.00012513]
[1731880090643,0.881824,89434.0,89433.0,0.00012513]
[1731880090851,0.93620804,89434.0,89433.0,0.00012513]
[1731880091658,0.881824,89434.0,89433.0,0.00012513]
[1731880096044,0.93620787,89434.0,89433.0,0.00012513]
[1731880097655,0.84488787,89434.0,89433.0,0.00012513]
[1731880097865,0.93616787,89434.0,89433.0,0.00012513]
[1731880103850,1.05862403,89434.0,89433.0,0.00012513]
[1731880104046,1.05862552,89434.0,89433.0,0.00012513]
[1731880104262,1.05862576,89434.0,89433.0,0.00012513]
[1731880104851,0.93616787,89434.0,89433.0,0.00012513]
[1731880105356,1.05865771,89434.0,89433.0,0.00012513]
[1731880105555,0.93616787,89434.0,89433.0,0.00012513]
[1731880106260,0.06738387,89434.0,89433.0,0.05602913]
[1731880106452,0.16699922,89437.0,89433.0,0.00012513]
[1731880106655,0.16699922,89437.0,89435.0,0.26827744]
[1731880106656,0.13360481,89437.0,89435.0,0.26827744]
[1731880106864,0.09128,89440.0,89436.0,0.31446545]
[1731880107174,0.3608,89444.0,89443.0,0.055898]
[1731880107558,0.3608,89444.0,89441.0,0.20098894]
[1731880107758,0.055898,89443.0,89441.0,0.04373658]
[1731880107957,0.0559,89440.0,89439.0,0.25688994]
[1731880108164,0.0559,89440.0,89439.0,0.06638808]
[1731880109266,0.0559,89440.0,89439.0,0.11016241]
[1731880109765,0.3628,89444.0,89443.0,0.055898]
[1731880109964,0.416698,89444.0,89443.0,0.055898]
[1731880110363,0.055899,89441.0,89440.0,0.0354]
[1731880110864,0.055899,89441.0,89440.0,0.0913]
[1731880111460,0.055899,89441.0,89440.0,0.0923]
[1731880111860,0.055899,89441.0,89440.0,0.10278715]
[1731880112077,0.055899,89441.0,89440.0,0.0923]
[1731880112371,0.055899,89441.0,89440.0,0.001]
[1731880112372,0.14197797,89441.0,89440.0,0.001]
[1731880112780,0.18738981,89441.0,89440.0,0.001]
[1731880113065,0.055899,89441.0,89440.0,0.001]
[1731880113263,0.147179,89441.0,89440.0,0.001]
[1731880113969,0.147179,89441.0,89440.0,0.002]
[1731880114165,0.154179,89441.0,89440.0,0.002]
[1731880114565,0.147179,89441.0,89440.0,0.001]
[1731880114767,0.154179,89441.0,89440.0,0.002]
[1731880114958,0.062899,89441.0,89440.0,0.002]
[1731880115160,0.154179,89441.0,89440.0,0.002]
[1731880115964,0.157179,89441.0,89440.0,0.001]
[1731880116565,0.157179,89441.0,89439.0,0.25654924]
[1731880116566,0.0559,89440.0,89439.0,0.25654924]
[1731880117167,0.0559,89440.0,89439.0,0.0559]
[1731880117570,0.0559,89440.0,89439.0,0.14197897]
[1731880117764,0.0559,89440.0,89439.0,0.14397897]
[1731880118185,0.0559,89440.0,89439.0,0.35511556]
[1731880118371,0.0559,89440.0,89439.0,0.14397897]
[1731880118574,0.0559,89440.0,89439.0,0.15446631]
[1731880119876,0.0559,89440.0,89439.0,0.49190631]
[1731880120377,0.0559,89440.0,89439.0,0.15646631]
[1731880121173,0.0559,89440.0,89439.0,0.20131554]
[1731880121579,0.0559,89440.0,89439.0,0.11523657]
[1731880122081,0.0559,89440.0,89439.0,0.004]
[1731880123368,0.0589,89440.0,89439.0,0.002]
[1731880123776,0.055904,89434.0,89433.0,0.00012513]
[1731880124082,0.507904,89434.0,89433.0,0.00012513]
[1731880125777,0.510904,89434.0,89433.0,0.00012513]
[1731880126381,0.517904,89434.0,89433.0,0.00112513]
[1731880129978,0.514904,89434.0,89433.0,0.00112513]
[1731880130285,0.517904,89434.0,89433.0,0.00112513]
[1731880134085,0.518904,89434.0,89433.0,0.00112513]
[1731880135678,0.517904,89434.0,89433.0,0.00112513]
[1731880136591,0.514904,89434.0,89433.0,0.00112513]
[1731880136784,0.510904,89434.0,89433.0,0.00012513]
[1731880136980,0.517904,89434.0,89433.0,0.00112513]
[1731880138487,0.514904,89434.0,89433.0,0.00112513]
[1731880138689,0.517904,89434.0,89433.0,0.00112513]
[1731880138888,0.57465278,89434.0,89433.0,0.00112513]
[1731880139089,0.56765278,89434.0,89433.0,0.00012513]
[1731880139287,0.56765278,89434.0,89433.0,0.00112513]
[1731880139288,0.741652,89434.0,89433.0,0.00112513]
[1731880139488,0.57465278,89434.0,89433.0,0.00112513]
[1731880139690,0.62203821,89434.0,89433.0,0.00012513]
[1731880139888,0.62203821,89434.0,89433.0,0.00112513]
[1731880139889,0.6290382,89434.0,89433.0,0.00112513]
[1731880140088,0.57465278,89434.0,89433.0,0.00112513]
[1731880140289,0.62203832,89434.0,89433.0,0.00012513]
[1731880140490,0.57465278,89434.0,89433.0,0.00112513]
[1731880141001,0.62903826,89434.0,89433.0,0.00112513]
[1731880141199,0.57232992,89434.0,89433.0,0.00112513]
[1731880141397,0.517944,89434.0,89433.0,0.00112513]
[1731880141691,0.423704,89434.0,89433.0,0.05702913]
[1731880141897,0.01,89434.0,89433.0,0.11377791]
[1731880142097,0.01,89434.0,89433.0,0.31444606]
[1731880142287,0.01,89434.0,89433.0,0.34413514]
[1731880142483,0.01,89434.0,89433.0,0.15395488]
[1731880143708,0.01,89434.0,89433.0,0.35486579]
[1731880143887,0.01,89434.0,89433.0,0.14346699]
[1731880144196,0.065904,89434.0,89433.0,0.15395483]
[1731880144380,0.065904,89434.0,89433.0,0.15395487]
[1731880144786,0.065904,89434.0,89433.0,0.19898684]
[1731880145497,0.065904,89434.0,89433.0,0.00112513]
[1731880148396,0.20672332,89434.0,89433.0,0.00112513]
[1731880148695,0.40675045,89434.0,89433.0,0.00112513]
[1731880149003,0.74219045,89434.0,89433.0,0.00112513]
[1731880149300,0.055905,89433.0,89418.0,0.20093176]
[1731880149497,0.055905,89433.0,89410.0,0.0355]
[1731880149498,0.055914,89418.0,89417.0,0.20093176]
[1731880149795,0.09124,89418.0,89414.0,0.20093176]
[1731880149999,0.055914,89417.0,89416.0,0.20093176]
[1731880150198,0.055914,89417.0,89416.0,0.20107162]
[1731880150700,0.055914,89417.0,89416.0,0.00013986]
[1731880151406,0.055914,89417.0,89416.0,0.20107162]
[1731880151607,0.055914,89417.0,89416.0,0.00013986]
[1731880152101,0.056914,89417.0,89416.0,0.01213986]
[1731880152301,0.057914,89417.0,89416.0,0.02013986]
[1731880152489,0.057914,89417.0,89416.0,0.07605486]
[1731880152691,0.057914,89417.0,89416.0,0.22107162]
[1731880152894,0.057914,89417.0,89416.0,0.02013986]
[1731880155601,0.129814,89417.0,89416.0,0.02013986]
[1731880158910,0.17396837,89417.0,89416.0,0.02013986]
[1731880162105,0.19322837,89417.0,89416.0,0.02013986]
[1731880162800,0.057914,89417.0,89416.0,0.02013986]
[1731880163620,0.057914,89417.0,89416.0,0.06053986]
[1731880170011,0.057914,89417.0,89416.0,0.02013986]
[1731880174619,0.19111533,89417.0,89416.0,0.02013986]
[1731880175319,0.057914,89417.0,89416.0,0.02013986]
[1731880175529,0.10308721,89417.0,89416.0,0.02013986]
[1731880175827,0.10308721,89417.0,89416.0,0.22095243]
[1731880176409,0.10308721,89417.0,89416.0,0.02013986]
[1731880176609,0.057914,89417.0,89416.0,0.02013986]
[1731880177513,0.19131606,89417.0,89416.0,0.02013986]
[1731880177712,0.057914,89417.0,89416.0,0.02013986]
[1731880177911,0.19131606,89417.0,89416.0,0.02013986]
[1731880178508,0.13540206,89417.0,89416.0,0.02013986]
[1731880178714,0.002,89417.0,89416.0,0.07605486]
[1731880179331,0.002,89417.0,89416.0,0.08654493]
[1731880179830,0.057914,89417.0,89416.0,0.08654493]
[1731880180223,0.057914,89417.0,89416.0,0.03062993]
[1731880180423,0.057914,89417.0,89416.0,0.02013986]
[1731880181422,0.19137151,89417.0,89416.0,0.02013986]
[1731880182126,0.057914,89417.0,89416.0,0.02013986]
[1731880182316,0.002,89417.0,89416.0,0.07605486]
[1731880182518,0.002,89417.0,89416.0,0.08654425]
[1731880183426,0.002,89417.0,89416.0,0.13200678]
[1731880184618,0.002,89417.0,89416.0,0.24384296]
[1731880185222,0.002,89417.0,89416.0,0.57853058]
[1731880185421,0.002,89417.0,89416.0,0.61334636]
[1731880185626,0.002,89417.0,89416.0,0.57893181]
[1731880185923,0.002,89417.0,89416.0,0.24384296]
[1731880186327,0.09108,89425.0,89424.0,0.05591]
[1731880186524,0.45188,89425.0,89424.0,0.05591]
[1731880186827,0.055907,89429.0,89428.0,0.055907]
[1731880187726,0.055904,89434.0,89433.0,0.055904]
[1731880189331,0.055904,89434.0,89433.0,0.06639168]
[1731880189632,0.055904,89434.0,89433.0,0.055904]
[1731880189930,0.058904,89434.0,89433.0,0.055904]
[1731880190429,0.065904,89434.0,89433.0,0.056904]
[1731880191620,0.065904,89434.0,89433.0,0.25771504]
[1731880191830,0.065904,89434.0,89433.0,0.056904]
[1731880192015,0.065904,89434.0,89433.0,0.25771418]
[1731880192214,0.065904,89434.0,89433.0,0.056904]
[1731880192626,0.065904,89434.0,89433.0,0.2576933]
[1731880193333,0.065904,89434.0,89433.0,0.25769153]
[1731880193533,0.065904,89434.0,89433.0,0.30188035]
[1731880193923,0.065904,89434.0,89433.0,0.10109282]
[1731880199340,0.01,89434.0,89433.0,0.21290774]
[1731880200030,0.00167794,89435.0,89433.0,0.69319568]
[1731880200336,0.3608,89452.0,89434.0,0.46087786]
[1731880200538,0.3608,89452.0,89451.0,0.055893]
[1731880201236,0.49394224,89460.0,89459.0,0.055888]
[1731880201442,0.3608,89460.0,89459.0,0.055888]
[1731880202342,0.0001119,89468.0,89467.0,0.055883]
[1731880204129,0.0001119,89468.0,89467.0,0.061883]
[1731880204739,0.0001119,89468.0,89467.0,0.006]
[1731880204939,0.055883,89467.0,89459.0,0.00011537]
[1731880205141,0.416688,89460.0,89459.0,0.00011537]
[1731880205529,0.416688,89460.0,89438.0,0.23833442]
[1731880205530,0.055898,89443.0,89441.0,0.055899]
[1731880205739,0.3608,89442.0,89441.0,0.055899]
[1731880205942,0.3608,89442.0,89441.0,0.06638596]
[1731880206242,0.3608,89442.0,89441.0,0.055899]
[1731880206442,0.3608,89443.0,89442.0,0.055899]
[1731880206642,0.0397,89455.0,89453.0,0.055892]
[1731880207539,0.09104,89458.0,89457.0,0.055889]
[1731880207737,0.45184,89458.0,89457.0,0.055889]
[1731880208631,0.45184,89458.0,89453.0,0.007]
[1731880208829,0.05589,89456.0,89453.0,0.007]
[1731880209041,0.3608,89454.0,89453.0,0.062892]
[1731880209348,0.3608,89454.0,89453.0,0.007]
[1731880209349,0.777491,89454.0,89453.0,0.007]
[1731880209527,0.055891,89454.0,89453.0,0.007]
[1731880209838,0.416691,89454.0,89453.0,0.007]
[1731880210145,0.416691,89454.0,89444.0,0.08643786]
[1731880210146,0.055892,89453.0,89444.0,0.08643786]
[1731880210440,0.055892,89453.0,89449.0,0.055894]
[1731880210740,0.055892,89453.0,89450.0,0.055894]
[1731880210934,0.3618,89454.0,89444.0,0.08643786]
[1731880211137,0.3618,89454.0,89445.0,0.01048636]